bitfinex-derivatives/quotes_SOLF0:USTF0_20260202
["timestamp","ask_amount","ask_price","bid_price","bid_amount"]
[1770014449700,29.00495877,97.894,97.744,24.99027383]
[1770014449701,29.02082211,97.889,97.772,9.2156]
[1770014449905,29.02082211,97.889,97.773,407.86]
[1770014450600,29.02082211,97.889,97.782,143.3401]
[1770014450905,29.02082211,97.889,97.783,9.2146]
[1770014451099,29.25122482,97.913,97.776,143.3484]
[1770014451300,8.70590441,97.93,97.815,143.2917]
[1770014451505,29.25122482,97.964,97.843,152.459]
[1770014451800,29.25122482,97.964,97.862,143.2229]
[1770014451992,29.25122482,97.964,97.867,9.2066]
[1770014452803,29.25118881,97.995,97.881,9.2053]
[1770014453104,29.25118881,97.995,97.891,143.1801]
[1770014453308,28.65006179,98.019,97.92,152.3397]
[1770014453604,142.92,98.07,97.95,143.0933]
[1770014453605,28.65006179,98.044,97.95,143.0933]
[1770014453795,28.65006179,98.079,97.951,407.82]
[1770014454198,28.65006179,98.079,97.945,143.1007]
[1770014454399,28.65006179,98.079,97.946,407.8]
[1770014454995,28.65006179,98.079,97.977,9.1963]
[1770014455202,28.65006179,98.079,97.98,8.67127508]
[1770014455403,28.9339991,98.104,97.996,143.027]
[1770014455603,28.9339991,98.104,97.983,143.0449]
[1770014456001,28.93393634,98.099,97.98,8.67127508]
[1770014456198,28.93393634,98.099,97.961,143.0777]
[1770014456506,28.93393634,98.079,97.962,407.68]
[1770014457200,28.93393634,98.079,97.964,143.0736]
[1770014457396,28.93393634,98.079,97.975,143.0574]
[1770014457601,28.93393634,98.079,97.962,407.68]
[1770014458401,28.93393634,98.079,97.965,143.0719]
[1770014458610,28.93393634,98.079,97.962,407.68]
[1770014459999,28.93393634,98.079,97.93,143.1223]
[1770014460000,29.24337932,98.069,97.93,143.1223]
[1770014460213,29.24337932,98.069,97.94,143.1084]
[1770014460407,29.24337932,98.069,97.973,143.0603]
[1770014460609,29.24337932,98.096,97.996,143.0272]
[1770014460914,29.24337932,98.096,97.939,429.3294]
[1770014460915,29.24974677,98.121,98.027,142.9807]
[1770014461303,29.24974677,98.121,98.02,407.4]
[1770014461606,29.24974677,98.109,97.999,407.4]
[1770014462307,29.24974677,98.109,98.02,142.9915]
[1770014462514,8.67127508,98.13,98.01,143.0062]
[1770014462515,29.24971459,98.129,98.024,142.986]
[1770014462704,29.24971459,98.129,98.023,142.9865]
[1770014463101,29.24971459,98.129,97.999,407.4]
[1770014463310,29.15487912,98.109,97.999,407.4]
[1770014463513,29.15487912,98.089,97.973,143.0598]
[1770014463904,29.15487912,98.089,97.982,143.0464]
[1770014464106,29.15487912,98.089,97.973,9.1966]
[1770014464300,29.15483995,98.069,97.957,143.0841]
[1770014464511,29.15483995,98.069,97.957,9.1982]
[1770014464809,29.15483995,98.069,97.973,143.0607]
[1770014465313,29.15483995,98.069,97.949,407.3]
[1770014465799,29.15483995,98.069,97.95,143.0942]
[1770014466508,9.1874,98.073,97.956,143.0843]
[1770014466509,29.10701478,98.049,97.956,143.0843]
[1770014467006,29.03328928,98.039,97.941,143.1062]
[1770014467202,29.03328928,98.039,97.94,269.24615771]
[1770014467400,29.03328928,98.019,97.922,9.2015]
[1770014467615,29.03328928,98.019,97.931,143.1207]
[1770014467813,29.03328928,98.019,97.928,143.1261]
[1770014468006,29.03328928,98.019,97.934,143.1168]
[1770014468304,29.03328928,98.019,97.924,143.1322]
[1770014468507,8.67127508,98.0,97.915,9.2021]
[1770014468706,29.03372384,97.999,97.916,143.1435]
[1770014469505,29.03372384,97.999,97.927,143.1274]
[1770014469814,29.03943179,97.989,97.892,143.1781]
[1770014470106,29.03943179,97.989,97.904,143.1609]
[1770014470309,29.03943179,97.989,97.894,143.1753]
[1770014470509,29.03943179,97.989,97.915,143.1443]
[1770014470708,142.9646,98.039,97.928,143.1263]
[1770014470709,8.67127508,98.01,97.928,143.1263]
[1770014471014,29.186662,98.042,97.964,143.0734]
[1770014472015,29.186662,98.042,97.968,9.1971]
[1770014472613,29.186662,98.042,97.93,143.1231]
[1770014472914,29.15404756,98.019,97.921,143.1359]
[1770014473216,29.15404756,98.019,97.91,143.1521]
[1770014473516,29.15404756,98.019,97.921,9.2016]
[1770014473917,29.15401303,98.017,97.906,9.203]
[1770014474114,29.15401303,97.999,97.9,143.1673]
[1770014474314,29.15401303,98.024,97.909,143.1536]
[1770014474614,29.15401303,98.024,97.918,143.14]
[1770014474814,29.15401303,98.024,97.901,143.1648]
[1770014475015,29.49711388,98.001,97.892,9.2043]
[1770014475318,29.49711388,98.029,97.92,143.138]
[1770014475916,29.49710419,98.022,97.907,143.1559]
[1770014476121,29.49710419,98.022,97.915,143.145]
[1770014476919,29.49710419,98.022,97.915,9.2021]
[1770014477119,29.49710419,98.022,97.915,152.3474]
[1770014477423,29.50286192,98.051,97.932,152.321]
[1770014478415,29.50285284,98.075,97.975,143.0579]
[1770014479315,29.50285284,98.075,97.979,9.1961]
[1770014480021,29.50285284,98.075,97.964,9.1976]
[1770014480219,29.50285284,98.075,97.95,8.67127508]
[1770014480420,29.67308581,98.059,97.936,143.1146]
[1770014480619,29.67308581,98.059,97.936,152.3147]
[1770014480822,29.67308581,98.059,97.95,143.0935]
[1770014481221,29.67308581,98.059,97.951,9.1988]
[1770014481821,29.67720706,98.037,97.91,18.89127508]
[1770014482425,29.67720706,98.032,97.918,9.2019]
[1770014483327,29.67720706,98.032,97.918,152.3416]
[1770014483714,29.67720706,98.032,97.95,143.0937]
[1770014484323,29.67720706,98.032,97.956,9.1982]
[1770014484519,8.67127508,98.06,97.956,9.1982]
[1770014484817,29.8901634,98.061,97.978,9.1962]
[1770014485020,29.8901634,98.061,97.972,143.0621]
[1770014485021,29.90315244,98.099,97.988,143.0384]
[1770014485521,29.90315244,98.099,97.99,9.1951]
[1770014486324,29.90316914,98.127,98.015,142.9983]
[1770014486622,29.90316914,98.127,98.049,142.9498]
[1770014486922,29.90316914,98.127,98.048,9.1897]
[1770014487126,29.90316914,98.127,98.02,142.9913]
[1770014487127,29.90316914,98.127,98.032,142.974]
[1770014487324,29.90316914,98.127,98.035,142.9693]
[1770014487720,29.90316914,98.127,98.025,142.9836]
[1770014488029,29.88856418,98.151,98.03,8.67127508]
[1770014488328,29.88856418,98.177,98.098,142.8783]
[1770014488535,29.88856418,98.177,98.088,142.8926]
[1770014488723,29.88856418,98.177,98.069,142.9206]
[1770014489125,29.89758016,98.159,98.063,142.9286]
[1770014489630,29.89758016,98.159,98.069,9.1877]
[1770014489931,29.89758016,98.159,98.081,142.9022]
[1770014490125,29.89759577,98.186,98.11,142.8603]
[1770014490320,29.89759577,98.186,98.11,152.0441]
[1770014490922,29.89759577,98.186,98.125,152.0205]
[1770014491528,29.89759577,98.186,98.125,9.1824]
[1770014492725,29.94897562,98.241,98.13,8.67127508]
[1770014492921,29.94897562,98.241,98.177,142.7635]
[1770014493128,29.94897562,98.241,98.191,142.7425]
[1770014493332,29.98898648,98.266,98.181,142.7568]
[1770014493523,29.98898648,98.266,98.159,406.94]
[1770014493728,29.98898648,98.259,98.161,142.7866]
[1770014494124,29.98900658,98.25,98.159,406.94]
[1770014494436,29.98900658,98.239,98.153,142.7978]
[1770014494734,29.98900658,98.239,98.165,142.7809]
[1770014494933,29.98900658,98.239,98.175,142.7657]
[1770014495134,29.98900658,98.239,98.165,151.9596]
[1770014495935,29.98900658,98.239,98.154,142.7964]
[1770014496336,29.98900658,98.239,98.174,142.7668]
[1770014496631,29.98900658,98.239,98.176,142.764]
[1770014496938,30.02196638,98.269,98.176,142.764]
[1770014497334,30.02196638,98.269,98.186,151.9259]
[1770014497834,29.64244774,98.249,98.168,9.1784]
[1770014498032,29.64244774,98.249,98.171,142.7719]
[1770014498240,29.64244774,98.249,98.177,142.7632]
[1770014498434,29.64244774,98.249,98.179,151.9377]
[1770014498833,29.64244774,98.249,98.179,9.1774]
[1770014499437,29.64244774,98.249,98.165,142.7798]
[1770014499739,29.64244774,98.249,98.176,142.7641]
[1770014500137,29.64244774,98.249,98.165,142.7798]
[1770014500138,29.64244774,98.249,98.177,151.9402]
[1770014500338,29.64244774,98.249,98.177,9.1775]
[1770014500740,29.64244774,98.249,98.165,142.7798]
[1770014501137,29.64244774,98.249,98.166,142.7793]
[1770014501333,29.70725019,98.239,98.148,142.805]
[1770014501736,29.70725019,98.219,98.117,142.8498]
[1770014501934,29.70725019,98.219,98.131,9.1818]
[1770014502538,29.70725019,98.219,98.131,152.0121]
[1770014502743,9.1738,98.218,98.107,9.1841]
[1770014503041,29.37146308,98.217,98.107,9.1841]
[1770014503244,29.37146308,98.199,98.107,9.1841]
[1770014503636,29.37146308,98.197,98.079,142.905]
[1770014503839,29.37146308,98.188,98.077,142.9087]
[1770014504037,29.37146308,98.188,98.079,142.9053]
[1770014504241,29.37146308,98.188,98.091,142.8883]
[1770014504644,29.37144986,98.211,98.11,142.8599]
[1770014504841,29.37144986,98.211,98.092,142.8869]
[1770014504842,29.37144986,98.211,98.103,142.8711]
[1770014505443,29.37144986,98.211,98.1,9.1848]
[1770014506444,29.38616911,98.199,98.09,142.8898]
[1770014507239,29.36745542,98.195,98.086,406.54]
[1770014507441,29.36745542,98.195,98.087,142.8943]
[1770014507747,29.36745542,98.195,98.102,142.8726]
[1770014507944,29.36745542,98.195,98.108,9.184]
[1770014508350,29.36745542,98.195,98.108,152.0471]
[1770014508852,29.36745542,98.195,98.108,9.184]
[1770014509743,29.46852306,98.171,98.072,10.22]
[1770014509948,29.46852306,98.171,98.064,142.9277]
[1770014510152,29.46852306,98.171,98.054,142.942]
[1770014510353,8.67127508,98.16,98.048,9.1896]
[1770014510651,29.46851536,98.159,98.048,9.1896]
[1770014511148,29.48059349,98.139,98.02,8.67127508]
[1770014511351,29.48059349,98.169,98.051,142.947]
[1770014511550,29.48059349,98.169,98.048,142.951]
[1770014511747,29.48059349,98.169,98.048,152.1407]
[1770014511949,29.48059349,98.169,98.069,142.9204]
[1770014512347,29.48058651,98.223,98.084,142.8975]
[1770014512549,29.48058651,98.199,98.115,142.8528]
[1770014513355,29.48058651,98.199,98.13,9.182]
[1770014515257,29.49881461,98.247,98.156,142.7933]
[1770014515451,29.49881461,98.273,98.164,142.7816]
[1770014515646,29.49881461,98.273,98.186,142.7492]
[1770014516554,29.49880873,98.299,98.17,8.63436985]
[1770014516751,29.49880873,98.299,98.218,142.7027]
[1770014516951,29.49880873,98.299,98.22,142.7007]
[1770014517355,8.63436985,98.32,98.22,142.7007]
[1770014517656,8.63436985,98.38,98.299,142.5859]
[1770014517957,29.38908337,98.384,98.301,142.5832]
[1770014518161,29.38908337,98.384,98.321,142.5543]
[1770014518361,8.63436985,98.42,98.321,142.5543]
[1770014518362,29.38907301,98.409,98.321,151.7184]
[1770014518551,29.38907301,98.409,98.341,142.525]
[1770014518950,32.78672512,98.434,98.335,142.5336]
[1770014519155,30.00723876,98.419,98.309,142.5706]
[1770014519458,30.00723876,98.419,98.319,142.5567]
[1770014519657,30.00723876,98.399,98.316,142.5613]
[1770014519851,30.00723876,98.399,98.327,142.5448]
[1770014520056,30.00723876,98.399,98.337,142.5306]
[1770014520258,30.00725403,98.429,98.368,142.4861]
[1770014520458,2.77948636,98.434,98.378,142.4709]
[1770014520757,8.636e-05,98.434,98.37,8.63436985]
[1770014521057,8.63436985,98.54,98.449,142.3684]
[1770014521359,8.63436985,98.54,98.443,142.3768]
[1770014521360,30.15359288,98.536,98.443,142.3768]
[1770014521662,30.15359288,98.536,98.465,142.3449]
[1770014521856,30.15359288,98.536,98.453,142.363]
[1770014522059,30.15359288,98.536,98.459,142.3544]
[1770014522258,30.15359288,98.536,98.469,142.339]
[1770014522459,30.15359288,98.536,98.42,8.63436985]
[1770014522460,30.15361368,98.562,98.489,142.3112]
[1770014522757,30.15361368,98.562,98.481,142.3227]
[1770014522958,30.15361368,98.562,98.471,142.3359]
[1770014523156,30.15361368,98.562,98.312,25.28825311]
[1770014523461,30.2983971,98.588,98.48,151.4727]
[1770014523660,30.2983971,98.584,98.489,142.3101]
[1770014523857,30.2984231,98.578,98.474,142.3329]
[1770014524059,21.3222176,98.61,98.499,142.2962]
[1770014524365,9.37443469,98.766,98.456,427.0728]
[1770014524366,30.2984231,98.659,98.594,142.1583]
[1770014524561,30.2984231,98.659,98.594,138.86937708]
[1770014524762,30.2984231,98.655,98.553,142.2175]
[1770014524961,30.41954937,98.64,98.536,142.2431]
[1770014525162,30.41954937,98.605,98.504,142.2884]
[1770014525360,30.41954937,98.605,98.48,21.3222176]
[1770014525361,30.41954937,98.648,98.547,142.2275]
[1770014525557,30.41954937,98.637,98.527,142.2553]
[1770014525857,30.41957942,98.616,98.514,142.2751]
[1770014526058,30.41957942,98.616,98.48,21.3222176]
[1770014526262,30.41957942,98.635,98.549,142.2245]
[1770014526564,30.41957942,98.635,98.539,142.2378]
[1770014527162,21.3222176,98.66,98.561,142.2065]
[1770014527458,30.06044184,98.719,98.637,142.0975]
[1770014527658,30.06044184,98.719,98.638,142.095]
[1770014527865,30.06044184,98.719,98.624,142.1161]
[1770014528061,141.9865,98.715,98.611,142.1349]
[1770014528267,30.0592548,98.714,98.63,142.1069]
[1770014528660,1.76351649,98.745,98.683,142.0308]
[1770014528661,30.0592548,98.745,98.683,142.0308]
[1770014528866,30.0592548,98.745,98.67,142.0489]
[1770014528867,30.0592548,98.745,98.674,142.0443]
[1770014529066,141.7781,98.86,98.728,141.9657]
[1770014529258,21.3222176,98.9,98.72,323.6222176]
[1770014529462,21.3222176,98.9,98.811,141.8465]
[1770014529661,141.7488,98.88,98.781,141.8903]
[1770014529859,1.76091082,98.905,98.765,425.7368]
[1770014530067,141.6623,98.941,98.835,141.8131]
[1770014530366,141.6906,98.921,98.814,141.8419]
[1770014530564,141.684,98.926,98.831,141.8182]
[1770014530760,141.5811,98.997,98.892,141.7301]
[1770014530964,21.3222176,99.02,98.932,141.6731]
[1770014531165,24.29035269,99.025,98.954,141.6422]
[1770014531461,24.29035269,99.025,98.932,141.6731]
[1770014531770,21.3222176,99.02,98.917,147.07504175]
[1770014532070,141.5124,99.045,98.86,141.7761]
[1770014532071,24.29035269,98.98,98.86,141.7761]
[1770014532266,24.29035269,98.976,98.871,141.7601]
[1770014532469,24.29035269,98.976,98.861,141.7757]
[1770014532470,24.29035269,98.976,98.873,5.3813266]
[1770014532671,24.29035269,99.035,98.926,5.3813266]
[1770014532861,24.29035269,99.035,98.927,5.3813266]
[1770014533065,141.4695,99.076,98.934,4.62419479]
[1770014533260,141.5489,99.02,98.881,4.62419479]
[1770014533461,24.29035269,99.016,98.885,4.62419479]
[1770014533666,141.5553,99.015,98.885,4.62419479]
[1770014533865,141.623,98.968,98.885,4.62419479]
[1770014534168,24.29035269,99.045,98.937,4.62581496]
[1770014534367,24.29035269,99.045,98.869,425.2914]
[1770014534368,21.3222176,99.12,98.981,4.62581496]
[1770014534569,21.3222176,99.15,99.014,4.62581496]
[1770014534869,24.29035269,99.153,99.027,141.5368]
[1770014535065,24.29035269,99.153,99.03,4.7566103]
[1770014535468,141.365,99.149,99.03,4.7566103]
[1770014535665,24.29035269,99.154,99.042,4.7566103]
[1770014535972,24.29035269,99.154,99.01,21.3222176]
[1770014535973,24.29035269,99.217,99.089,4.64149512]
[1770014536171,141.1937,99.269,99.129,4.64149512]
[1770014536368,24.29035269,99.248,99.138,4.64149512]
[1770014536570,141.1792,99.279,99.109,141.4204]
[1770014536571,141.1939,99.269,99.15,4.64149512]
[1770014536968,141.2258,99.246,99.15,4.64149512]
[1770014537271,141.3129,99.185,99.089,6.18500499]
[1770014537471,141.2524,99.228,99.089,6.18500499]
[1770014537472,141.283,99.206,99.089,6.18500499]
[1770014537668,24.29035269,99.203,99.094,6.18500499]
[1770014538066,141.3098,99.188,99.094,6.18500499]
[1770014538375,141.3098,99.188,99.015,141.554]
[1770014538376,141.2089,99.258,99.122,141.4023]
[1770014538668,141.1436,99.304,99.183,6.17066475]
[1770014538865,141.1298,99.314,99.183,6.17066475]
[1770014539067,24.29035269,99.317,99.163,404.02]
[1770014539068,24.29035269,99.341,99.222,4.19342327]
[1770014539266,24.29035269,99.406,99.305,145.33502327]
[1770014539579,24.29035269,99.489,99.36,145.25682327]
[1770014539769,27.06983905,99.471,99.352,141.0738]
[1770014539964,27.06983905,99.471,99.353,4.17917496]
[1770014540672,27.06983905,99.471,99.358,4.17917496]
[1770014540869,140.9249,99.458,99.358,4.17917496]
[1770014541070,2.77948636,99.471,99.397,4.73218549]
[1770014541374,24.29035269,99.504,99.366,141.0547]
[1770014541674,140.9091,99.47,99.361,1.95269913]
[1770014541865,24.29035269,99.451,99.336,141.0974]
[1770014542170,24.29035269,99.518,99.382,1.93876734]
[1770014542368,24.29035269,99.504,99.389,1.93876734]
[1770014542569,24.29035269,99.545,99.404,1.93876734]
[1770014542768,24.29035269,99.545,99.432,140.9604]
[1770014542967,24.29035269,99.545,99.429,0.90722043]
[1770014543171,24.29035269,99.521,99.394,0.90722043]
[1770014543377,24.29035269,99.497,99.361,141.0623]
[1770014543574,24.29035269,99.472,99.359,0.90722043]
[1770014543772,24.29035269,99.452,99.331,141.1046]
[1770014543969,24.29035269,99.431,99.29,141.163]
[1770014544166,140.9099,99.469,99.341,141.0898]
[1770014544371,24.29035269,99.484,99.341,141.0898]
[1770014544372,21.3222176,99.57,99.439,140.9512]
[1770014544672,21.3222176,99.57,99.399,423.0249]
[1770014544673,21.3222176,99.58,99.449,140.9365]
[1770014544872,140.7552,99.578,99.463,23.53183415]
[1770014545074,21.3222176,99.59,99.47,140.9077]
[1770014545277,21.3222176,99.6,99.47,140.9077]
[1770014545472,21.3222176,99.57,99.461,23.53183415]
[1770014545772,140.6281,99.668,99.548,140.7963]
[1770014545978,21.3222176,99.67,99.516,140.8421]
[1770014545979,140.6605,99.645,99.524,23.53183415]
[1770014546175,21.3222176,99.69,99.582,140.7485]
[1770014546370,21.3222176,99.69,99.558,140.7819]
[1770014546371,24.29035269,99.731,99.608,140.7117]
[1770014546572,24.29035269,99.731,99.605,23.53183415]
[1770014546573,140.5441,99.728,99.605,23.53183415]
[1770014546773,24.29035269,99.682,99.557,140.7834]
[1770014546969,24.29035269,99.71,99.601,140.7223]
[1770014547176,24.29035269,99.71,99.622,140.6923]
[1770014547376,24.29035269,99.71,99.624,140.6894]
[1770014547677,24.29035269,99.641,99.54,140.8083]
[1770014547875,164.94685269,99.648,99.532,23.53183415]
[1770014548075,24.29035269,99.633,99.534,140.817]
[1770014548380,24.29035269,99.633,99.532,23.53183415]
[1770014548381,8.636e-05,99.693,99.649,140.6536]
[1770014548577,24.29035269,99.759,99.681,140.6087]
[1770014548777,24.29035269,99.759,99.666,140.6293]
[1770014549075,24.29035269,99.719,99.618,140.6977]
[1770014549379,21.3222176,99.85,99.74,140.5261]
[1770014549674,140.3207,99.887,99.764,140.492]
[1770014549675,21.3222176,99.88,99.764,140.492]
[1770014549883,140.3594,99.859,99.749,140.5127]
[1770014550074,140.3594,99.859,99.716,140.5596]
[1770014550075,140.2854,99.912,99.799,140.4419]
[1770014550276,140.2737,99.92,99.798,140.4443]
[1770014550481,140.2778,99.917,99.805,140.4342]
[1770014550672,8.636e-05,99.915,99.873,140.3387]
[1770014550877,140.2202,99.958,99.854,140.3658]
[1770014551077,140.234,99.948,99.834,140.3929]
[1770014551281,140.2217,99.957,99.842,140.3826]
[1770014551575,140.2217,99.957,99.822,140.4104]
[1770014551576,140.2685,99.924,99.813,140.4231]
[1770014551777,21.3222176,99.89,99.785,140.4617]
[1770014551982,140.2717,99.922,99.812,140.4245]
[1770014552178,21.3222176,99.95,99.836,140.3912]
[1770014552383,21.3222176,99.97,99.869,140.3438]
[1770014552678,700.7758,100.01,99.858,23.53183415]
[1770014552679,140.2027,99.971,99.87,23.53183415]
[1770014552981,161.4628176,100.02,99.91,23.53183415]
[1770014553177,24.29035269,100.01,99.908,140.2899]
[1770014553385,140.0806,100.06,99.957,23.53183415]
[1770014553683,21.3222176,100.12,100.01,163.67783415]
[1770014553980,24.29035269,100.06,99.985,140.1814]
[1770014554282,140.1621,100.0,99.898,140.3038]
[1770014554478,140.1698,99.994,99.92,23.53183415]
[1770014554675,161.3796176,100.08,99.985,23.53183415]
[1770014554875,140.0443,100.09,99.999,23.53183415]
[1770014554876,21.3222176,100.09,99.999,23.53183415]
[1770014555073,140.0362,100.09,99.999,23.53183415]
[1770014555274,161.3437176,100.1,99.999,23.53183415]
[1770014555576,2.77948636,100.14,100.05,140.0799]
[1770014555778,2.77948636,100.14,100.05,140.0902]
[1770014555977,0.00831689,100.14,100.08,140.0486]
[1770014556184,0.00831689,100.14,100.06,140.0755]
[1770014556380,0.00831689,100.14,100.02,140.1193]
[1770014556577,0.00831689,100.14,100.01,140.1363]
[1770014556578,76.52628152,100.21,100.13,139.9786]
[1770014556783,139.966,100.14,100.02,140.1327]
[1770014556977,21.3222176,100.19,100.07,140.0607]
[1770014557174,139.861,100.22,100.1,140.0177]
[1770014557374,139.811,100.26,100.13,139.9788]
[1770014557581,139.8125,100.25,100.13,139.9788]
[1770014557776,139.8259,100.24,100.11,140.0062]
[1770014557984,139.9374,100.16,100.02,140.1198]
[1770014558282,419.5964,100.22,99.979,140.1898]
[1770014558283,140.0085,100.11,99.979,140.1898]
[1770014558483,140.0808,100.06,99.936,140.2497]
[1770014558685,140.1987,99.974,99.844,140.3799]
[1770014558879,140.1816,99.986,99.855,140.3638]
[1770014559080,170.4669176,100.02,99.85,140.3714]
[1770014559081,140.1797,99.987,99.85,140.3714]
[1770014559380,140.1356,100.02,99.835,400.42]
[1770014559381,140.0193,100.11,99.89,21.3222176]
[1770014559583,139.9726,100.14,100.0,140.1502]
[1770014559791,140.0243,100.1,99.973,400.22]
[1770014559984,140.0243,100.1,99.95,21.3222176]
[1770014559985,140.0643,100.07,99.934,140.2533]
[1770014560287,140.0361,100.09,99.955,140.2238]
[1770014560588,140.0361,100.09,99.922,140.2695]
[1770014560589,139.9094,100.18,100.05,140.0902]
[1770014560783,161.1330176,100.26,100.12,139.9819]
[1770014560983,161.0889176,100.29,100.16,139.9349]
[1770014561287,142.43768636,100.36,100.21,139.8669]
[1770014561479,2.77948636,100.36,100.25,139.8094]
[1770014561682,139.6036,100.4,100.26,139.7887]
[1770014561882,139.6312,100.38,100.23,139.8309]
[1770014562081,160.9105176,100.42,100.28,139.7612]
[1770014562280,139.5045,100.48,100.33,139.6994]
[1770014562581,139.4088,100.54,100.4,139.6024]
[1770014562781,139.4239,100.53,100.4,139.6025]
[1770014562980,557.5042,100.57,100.4,139.6025]
[1770014562981,139.3266,100.6,100.47,139.5022]
[1770014563287,142.13268636,100.58,100.44,139.5346]
[1770014563580,139.437,100.52,100.37,139.6309]
[1770014563885,139.437,100.52,100.31,419.1533]
[1770014563886,139.5347,100.45,100.32,161.0358176]
[1770014564084,139.592,100.41,100.28,21.3222176]
[1770014564280,139.6488,100.37,100.22,161.1617176]
[1770014564581,139.6349,100.38,100.23,139.8281]
[1770014564780,139.521,100.46,100.3,139.7357]
[1770014564975,139.5342,100.45,100.3,139.7392]
[1770014565175,418.4127,100.5,100.32,139.7117]
[1770014565176,139.4855,100.49,100.32,139.7117]
[1770014565379,139.478,100.49,100.33,161.0220176]
[1770014565580,139.4945,100.48,100.3,21.3222176]
[1770014565783,139.5615,100.43,100.31,21.3222176]
[1770014565978,139.733,100.31,100.2,313.44702123]
[1770014566285,440.3961176,100.34,100.15,383.1]
[1770014566482,139.8533,100.22,100.13,200.02]
[1770014566684,139.8827,100.2,100.08,21.3222176]
[1770014566984,139.7929,100.27,100.08,21.3222176]
[1770014567188,139.5853,100.42,100.23,21.3222176]
[1770014567378,139.4911,100.49,100.32,21.3222176]
[1770014567579,139.4769,100.5,100.32,21.3222176]
[1770014567883,418.2074,100.55,100.23,613.2531812]
[1770014567884,139.3091,100.62,100.42,21.3222176]
[1770014568080,160.6464176,100.61,100.41,79.78]
[1770014568277,139.2986,100.62,100.46,21.3222176]
[1770014568478,139.2986,100.62,100.43,199.88]
[1770014568479,139.3719,100.57,100.43,199.88]
[1770014568677,142.13688636,100.58,100.23,477.299834]
[1770014568678,139.4836,100.49,100.41,21.3222176]
[1770014568881,21.3222176,100.53,100.34,21.3222176]
[1770014569081,139.4147,100.54,100.37,101.0822176]
[1770014569281,2.77948636,100.58,100.46,21.3222176]
[1770014569478,139.1143,100.76,100.55,21.3222176]
[1770014569683,417.1135,100.81,100.61,21.3222176]
[1770014569684,139.047,100.81,100.61,21.3222176]
[1770014569977,138.9203,100.9,100.7,21.3222176]
[1770014570279,138.9203,100.9,100.71,260.06]
[1770014570480,138.9288,100.89,100.72,145.3222176]
[1770014570685,139.0171,100.83,100.68,398.5]
[1770014570880,139.0632,100.79,100.62,21.3222176]
[1770014571081,139.0789,100.78,100.58,398.5]
[1770014571291,139.0789,100.78,100.36,85.2888704]
[1770014571292,139.2166,100.68,100.46,493.11116273]
[1770014571592,139.3422,100.59,100.46,293.53116273]
[1770014571884,139.3391,100.59,100.42,21.3222176]
[1770014572084,139.3391,100.59,100.38,398.2]
[1770014572085,139.3775,100.57,100.38,398.2]
[1770014572288,21.3222176,100.64,100.38,398.2]
[1770014572485,139.3314,100.6,100.36,199.58]
[1770014572688,139.3757,100.57,100.4,21.3222176]
[1770014572987,139.4067,100.55,100.37,21.3222176]
[1770014573180,139.4294,100.53,100.38,247.5]
[1770014573381,139.4853,100.49,100.34,21.3222176]
[1770014573693,160.9897176,100.36,100.23,392.0109636]
[1770014573880,139.7126,100.33,100.23,392.0109636]
[1770014574089,161.1021176,100.28,99.97,21.3222176]
[1770014574286,419.038,100.35,99.97,21.3222176]
[1770014574287,139.6862,100.34,100.06,199.4]
[1770014574484,30.87447337,100.45,100.25,30.87447337]
[1770014574788,139.2501,100.66,100.41,30.87447337]
[1770014574984,123.49789348,100.88,100.27,97.89]
[1770014574985,139.2165,100.68,100.5,30.87447337]
[1770014575185,170.08887337,100.68,100.51,124.0]
[1770014575386,139.3465,100.59,100.45,278.92]
[1770014575583,139.3575,100.58,100.45,278.92]
[1770014575783,139.3429,100.59,100.38,284.18331844]
[1770014575784,139.4792,100.49,100.38,284.18331844]
[1770014575984,106.78396159,100.53,100.33,30.87447337]
[1770014576289,30.87447337,100.57,100.37,30.87447337]
[1770014576482,30.87447337,100.49,100.28,285.99910335]
[1770014576680,139.5246,100.46,100.28,316.87357672]
[1770014576879,139.5084,100.47,100.28,285.99910335]
[1770014577083,30.87447337,100.57,100.37,30.87447337]
[1770014577386,139.2864,100.63,100.49,30.87447337]
[1770014577690,139.2839,100.63,100.46,30.87447337]
[1770014577888,139.2482,100.66,100.5,30.87447337]